bitfinex-derivatives/quotes_BTCF0:USTF0_20220102
["timestamp","ask_amount","ask_price","bid_price","bid_amount"]
[1641127982609,1.01211491,47343.0,47337.0,0.14033567]
[1641127983008,1.01211491,47343.0,47338.0,0.12001875]
[1641127983408,0.57886567,47343.0,47342.0,0.83358038]
[1641127984208,0.39886567,47343.0,47342.0,0.83358038]
[1641127984711,0.32189658,47343.0,47342.0,0.83358038]
[1641127985208,0.41186567,47343.0,47341.0,0.83358038]
[1641127985408,0.57986567,47343.0,47342.0,0.76958161]
[1641127986110,0.39986567,47343.0,47342.0,0.76958161]
[1641127986509,0.57986567,47343.0,47342.0,0.76958161]
[1641127986809,0.39986567,47343.0,47342.0,0.76958161]
[1641127987009,0.57986567,47343.0,47342.0,0.76958161]
[1641127987211,0.41186567,47343.0,47342.0,0.59558161]
[1641127987410,0.57886567,47343.0,47342.0,0.76958161]
[1641127988110,0.39886567,47343.0,47342.0,0.76958161]
[1641127988510,0.39886567,47343.0,47342.0,0.88959658]
[1641127988712,0.23186567,47343.0,47342.0,0.71559658]
[1641127989313,0.23186567,47343.0,47342.0,0.12001497]
[1641127989515,0.40686567,47343.0,47342.0,1.13059535]
[1641127990914,0.23186567,47343.0,47342.0,0.95359535]
[1641127991415,0.40086567,47343.0,47342.0,1.12859535]
[1641127992717,0.23186567,47343.0,47342.0,0.95359535]
[1641127992918,0.23186567,47343.0,47342.0,0.12001497]
[1641127993419,0.27886567,47343.0,47342.0,0.186]
[1641127993619,0.27886567,47343.0,47342.0,0.30601497]
[1641127994318,0.18733567,47343.0,47342.0,0.54662497]
[1641127994519,0.18733567,47343.0,47342.0,0.36662497]
[1641127994720,0.18733567,47343.0,47342.0,1.19869657]
[1641127994922,0.047,47343.0,47342.0,1.21069701]
[1641127995320,0.84036042,47346.0,47342.0,0.19262541]
[1641127995521,0.84036042,47349.0,47342.0,0.38462541]
[1641127995722,0.84036042,47349.0,47343.0,0.13201541]
[1641127996220,0.84036042,47349.0,47344.0,0.13201541]
[1641127996920,0.84036042,47349.0,47345.0,0.12001497]
[1641127997425,0.84036042,47349.0,47345.0,0.187]
[1641127997625,0.84036042,47349.0,47346.0,0.12001497]
[1641127997823,0.84036042,47349.0,47348.0,0.35617178]
[1641127998222,0.84036042,47349.0,47347.0,0.59361964]
[1641127998423,0.84036042,47350.0,47347.0,0.59361964]
[1641127999523,0.84036042,47350.0,47349.0,0.35593194]
[1641128001027,0.84036042,47351.0,47348.0,0.59361964]
[1641128001425,0.84036042,47351.0,47349.0,0.184]
[1641128001828,1.00181774,47352.0,47349.0,0.184]
[1641128002827,0.84036042,47350.0,47346.0,0.35546529]
[1641128003426,0.84036042,47350.0,47347.0,0.12000033]
[1641128004840,0.84036042,47351.0,47348.0,0.59361964]
[1641128005445,0.84036042,47351.0,47348.0,0.77461964]
[1641128005646,0.84036042,47351.0,47350.0,0.35518237]
[1641128007549,0.84036042,47351.0,47350.0,0.53718237]
[1641128007749,0.84036042,47351.0,47350.0,0.65717505]
[1641128008747,0.84036042,47351.0,47350.0,0.35518237]
[1641128009049,0.84036042,47351.0,47348.0,0.009794]
[1641128009248,0.06111,47351.0,47342.0,1.40153638]
[1641128009449,0.06111,47351.0,47350.0,0.187]
[1641128010054,0.06111,47351.0,47350.0,0.54270098]
[1641128010851,0.06111,47351.0,47350.0,0.35570098]
[1641128011053,0.06111,47351.0,47349.0,0.35570098]
[1641128011452,0.06111,47351.0,47350.0,0.181]
[1641128012053,0.06111,47351.0,47350.0,0.53670098]
[1641128012452,0.24111,47351.0,47350.0,0.53670098]
[1641128012661,0.24111,47351.0,47350.0,0.181]
[1641128013057,0.06111,47351.0,47350.0,0.181]
[1641128013454,0.06111,47351.0,47350.0,0.148]
[1641128014254,0.32033567,47352.0,47350.0,0.148]
[1641128014454,0.09002253,47351.0,47350.0,0.148]
[1641128015454,0.09002253,47351.0,47350.0,0.186]
[1641128016155,0.17327253,47351.0,47350.0,0.186]
[1641128016556,0.02518576,47350.0,47349.0,0.35570098]
[1641128016955,0.09002253,47351.0,47349.0,0.35570098]
[1641128017557,0.27602253,47351.0,47349.0,0.35570098]
[1641128017759,1.11563487,47351.0,47349.0,0.59283496]
[1641128019159,0.09002253,47350.0,47349.0,0.59283496]
[1641128019560,0.09002253,47350.0,47349.0,0.71283355]
[1641128019760,1.02561234,47351.0,47349.0,0.71283355]
[1641128019960,0.59971602,47350.0,47349.0,0.71283355]
[1641128020162,0.59971602,47350.0,47349.0,0.59283496]
[1641128020565,0.59971602,47350.0,47349.0,0.71283334]
[1641128021562,0.86134602,47350.0,47349.0,0.71283334]
[1641128022162,0.26163,47350.0,47349.0,0.71283334]
[1641128022663,0.35164646,47350.0,47349.0,0.59283496]
[1641128022864,0.16364646,47350.0,47349.0,0.59283496]
[1641128023563,1.1872588,47350.0,47348.0,0.59283496]
[1641128023962,1.3672588,47350.0,47348.0,0.59283496]
[1641128024164,0.52764646,47350.0,47348.0,0.59283496]
[1641128024364,0.09001646,47349.0,47347.0,0.59283496]
[1641128025064,0.09001646,47349.0,47348.0,0.59283496]
[1641128025467,0.27601646,47349.0,47348.0,0.59283496]
[1641128025665,0.45601646,47349.0,47348.0,0.59283496]
[1641128026065,1.59477238,47349.0,47348.0,0.59283496]
[1641128026869,1.40877238,47349.0,47348.0,0.59283496]
[1641128027468,1.59677238,47349.0,47348.0,0.59283496]
[1641128027668,0.27801646,47349.0,47348.0,0.59283496]
[1641128028471,1.59677238,47349.0,47347.0,0.59283496]
[1641128028768,1.84972022,47349.0,47347.0,0.59283496]
[1641128028969,1.66172022,47349.0,47347.0,0.59283496]
[1641128029171,0.09101646,47348.0,47346.0,0.82996895]
[1641128029369,0.001,47347.0,47346.0,0.82996895]
[1641128029770,0.52397678,47347.0,47346.0,0.82996895]
[1641128029970,0.66431245,47347.0,47346.0,0.82996895]
[1641128031373,0.66431245,47347.0,47345.0,0.82996895]
[1641128031574,0.001,47346.0,47345.0,0.82996895]
[1641128031774,0.09101646,47346.0,47344.0,0.82996895]
[1641128031975,0.001,47345.0,47344.0,0.82996895]
[1641128032376,0.001,47345.0,47344.0,0.94998256]
[1641128032577,0.09101646,47345.0,47344.0,0.94998256]
[1641128033476,0.27601646,47345.0,47344.0,0.94998256]
[1641128034278,0.27501646,47345.0,47344.0,0.94998256]
[1641128034477,0.27601646,47345.0,47344.0,0.94998256]
[1641128034875,0.09101646,47345.0,47344.0,0.94998256]
[1641128035075,0.09001646,47345.0,47344.0,0.94998256]
[1641128035477,0.27501646,47345.0,47344.0,0.49052993]
[1641128035678,0.27601646,47345.0,47344.0,0.49052993]
[1641128035879,0.27601646,47345.0,47344.0,0.61054426]
[1641128036080,0.186,47345.0,47344.0,0.61054426]
[1641128036278,0.185,47345.0,47344.0,0.61054426]
[1641128036780,0.09001646,47345.0,47344.0,0.49052993]
[1641128037481,0.186,47345.0,47344.0,0.49052993]
[1641128038281,0.27601646,47345.0,47344.0,0.49052993]
[1641128039380,0.09001646,47345.0,47344.0,0.49052993]
[1641128039580,0.27501646,47345.0,47344.0,0.49052993]
[1641128039981,0.185,47345.0,47344.0,0.49052993]
[1641128040381,0.206125,47345.0,47344.0,0.49052993]
[1641128040783,0.11114146,47345.0,47344.0,0.49052993]
[1641128041485,0.29714146,47345.0,47344.0,0.49052993]
[1641128041784,0.29714146,47345.0,47344.0,0.59626793]
[1641128042883,0.11114146,47345.0,47344.0,0.59626793]
[1641128043285,0.11114146,47345.0,47342.0,0.35743628]
[1641128043484,0.29614146,47345.0,47342.0,0.35743628]
[1641128043884,0.09001646,47344.0,47342.0,0.35743628]
[1641128044084,0.59970142,47343.0,47342.0,0.35743628]
[1641128044484,0.59970142,47343.0,47342.0,0.4774569]
[1641128045087,0.92959845,47344.0,47342.0,0.12002062]
[1641128045488,0.186,47343.0,47342.0,0.12002062]
[1641128046788,0.83958199,47344.0,47342.0,0.12002062]
[1641128046990,0.86070699,47345.0,47342.0,0.12002062]
[1641128047190,0.59956656,47344.0,47342.0,0.12002062]
[1641128047592,0.59956656,47344.0,47341.0,0.12002062]
[1641128047893,0.59956656,47344.0,47340.0,0.35743628]
[1641128048193,0.14033567,47341.0,47340.0,0.35743628]
[1641128048795,0.35973924,47342.0,47340.0,0.35743628]
[1641128049594,0.54573924,47342.0,47340.0,0.35743628]
[1641128049993,0.54573924,47342.0,47338.0,0.59626793]
[1641128050195,0.32633567,47342.0,47338.0,1.43038311]
[1641128050494,0.32633567,47342.0,47340.0,0.59626793]
[1641128050895,0.14033567,47342.0,47340.0,0.59626793]
[1641128051398,0.50007491,47342.0,47340.0,0.35731535]
[1641128051694,0.68607491,47342.0,47340.0,0.35731535]
[1641128052908,0.50007491,47342.0,47340.0,0.35731535]
[1641128053611,0.68907491,47342.0,47340.0,0.35731535]
[1641128054913,0.50007491,47342.0,47340.0,0.35731535]
[1641128055514,0.68907491,47342.0,47340.0,0.35731535]
[1641128055916,0.32933567,47342.0,47341.0,0.35731535]
[1641128058114,0.32933567,47342.0,47340.0,0.59626793]
[1641128059014,0.14033567,47342.0,47341.0,0.35776553]
[1641128059517,0.32933567,47342.0,47341.0,0.35776553]
[1641128060814,0.14033567,47342.0,47341.0,0.35776553]
[1641128061516,0.32933567,47342.0,47341.0,0.35776553]
[1641128061717,0.68907491,47342.0,47340.0,0.35776553]
[1641128062018,0.75851491,47342.0,47340.0,0.35776553]
[1641128062516,0.39877567,47342.0,47341.0,0.35776553]
[1641128063316,0.39877567,47342.0,47341.0,0.47778463]
[1641128063521,0.39877567,47342.0,47341.0,0.1200191]
[1641128065019,0.20977567,47342.0,47341.0,0.1200191]
[1641128065620,0.39577567,47342.0,47341.0,0.1200191]
[1641128066423,0.39577567,47342.0,47341.0,0.71628703]
[1641128067022,0.20977567,47342.0,47341.0,0.71628703]
[1641128067221,0.14033567,47342.0,47341.0,0.71628703]
[1641128067622,0.33033567,47342.0,47341.0,0.71628703]
[1641128067821,0.33033567,47342.0,47341.0,0.1200191]
[1641128068022,0.42036765,47342.0,47341.0,0.1200191]
[1641128068522,0.42036765,47342.0,47337.0,0.009794]
[1641128068523,0.42036765,47342.0,47338.0,0.1200191]
[1641128068923,0.23036765,47342.0,47339.0,0.01200164]
[1641128069324,0.9302911,47341.0,47340.0,0.1200191]
[1641128070128,0.32933567,47342.0,47340.0,0.1200191]
[1641128070428,0.189,47342.0,47341.0,0.18]
[1641128070628,0.189,47342.0,47341.0,0.19200016]
[1641128070829,0.189,47342.0,47341.0,0.31201926]
[1641128071028,1.45909159,47347.0,47341.0,0.31201926]
[1641128071229,0.14033567,47347.0,47344.0,0.18]
[1641128071730,0.14133567,47347.0,47344.0,0.18]
[1641128071930,0.14133567,47347.0,47345.0,0.1200191]
[1641128072831,0.14133567,47347.0,47344.0,0.18]
[1641128073032,0.14133567,47347.0,47342.0,0.1200191]
[1641128073332,0.14133567,47347.0,47345.0,0.1200191]
[1641128073533,0.14033567,47347.0,47345.0,0.1200191]
[1641128073732,0.20433567,47347.0,47344.0,0.18]
[1641128074132,0.20433567,47347.0,47345.0,0.1200191]
[1641128074934,0.14033567,47347.0,47345.0,0.1200191]
[1641128075732,0.20133567,47347.0,47345.0,0.3080191]
[1641128076335,0.20133567,47347.0,47346.0,0.1200191]
[1641128076934,0.14033567,47347.0,47346.0,0.1200191]
[1641128077334,0.14033567,47347.0,47341.0,0.1200191]
[1641128077536,0.22702567,47347.0,47340.0,1.40153638]
[1641128077738,0.41902567,47347.0,47339.0,1.40153638]
[1641128077933,0.41902567,47347.0,47341.0,0.12001808]
[1641128078336,0.41902567,47347.0,47340.0,0.13201975]
[1641128078537,0.41902567,47347.0,47342.0,0.12001808]
[1641128078839,1.73778159,47347.0,47345.0,0.84024644]
[1641128079036,1.54578159,47347.0,47345.0,0.84024644]
[1641128079736,1.73278159,47347.0,47346.0,0.84024644]
[1641128079936,0.41402567,47347.0,47346.0,0.84024644]
[1641128080537,0.59402567,47347.0,47346.0,0.84024644]
[1641128080837,1.91278159,47347.0,47345.0,0.95324644]
[1641128081038,1.72578159,47347.0,47345.0,0.84024644]
[1641128081537,1.54578159,47347.0,47346.0,0.12001415]
[1641128081737,1.73478159,47347.0,47346.0,0.12001415]
[1641128082537,0.41602567,47347.0,47346.0,0.12001415]
[1641128082936,0.22702567,47347.0,47346.0,0.12001415]
[1641128083139,0.14033567,47347.0,47346.0,0.12001415]
[1641128083742,0.23133567,47347.0,47346.0,0.30801415]
[1641128083943,0.23133567,47347.0,47346.0,0.188]
[1641128084339,0.23133567,47347.0,47346.0,0.30801415]
[1641128084942,0.14033567,47347.0,47346.0,0.12001415]
[1641128085344,0.14033567,47347.0,47345.0,0.12001415]
[1641128085542,0.23035801,47347.0,47345.0,0.12001415]
[1641128085742,0.23035801,47347.0,47346.0,0.191]
[1641128085941,0.23035801,47347.0,47346.0,0.371]
[1641128086141,0.23035801,47347.0,47346.0,0.31101415]
[1641128086341,0.7403257,47347.0,47346.0,0.31101415]
[1641128087141,0.7403257,47347.0,47346.0,0.12001415]
[1641128087541,0.7403257,47347.0,47342.0,0.12001415]
[1641128087742,0.7403257,47347.0,47346.0,0.189]
[1641128088342,0.7403257,47347.0,47346.0,0.30901415]
[1641128089142,0.7403257,47347.0,47346.0,0.12001415]
[1641128089542,0.7403257,47347.0,47341.0,0.12001415]
[1641128089742,0.7403257,47347.0,47346.0,0.19]
[1641128089944,0.7403257,47347.0,47346.0,0.31001415]
[1641128091145,0.7403257,47347.0,47346.0,0.12001415]
[1641128091745,0.7403257,47347.0,47346.0,0.19]
[1641128091944,0.14033567,47347.0,47346.0,0.31001415]
[1641128092145,0.23035797,47347.0,47346.0,0.31001415]
[1641128093148,0.23035797,47347.0,47346.0,0.19]
[1641128093549,0.23035797,47347.0,47338.0,1.54187205]
[1641128093848,0.37335797,47347.0,47346.0,0.192]
[1641128094048,0.37335797,47347.0,47346.0,1.03091155]
[1641128094447,0.37335797,47347.0,47346.0,1.15092498]
[1641128094647,0.37335797,47347.0,47346.0,1.03091155]
[1641128095047,0.23035797,47347.0,47346.0,0.83891155]
[1641128095749,0.37335797,47347.0,47346.0,1.03091155]
[1641128096950,0.37335797,47347.0,47346.0,0.192]
[1641128097150,0.37335797,47347.0,47345.0,0.83891155]
[1641128097151,0.23035797,47347.0,47345.0,0.83891155]
[1641128097753,0.41835797,47347.0,47345.0,0.90591155]
[1641128098957,0.41835797,47347.0,47345.0,1.08591155]
[1641128099156,0.23035797,47347.0,47346.0,0.12000577]
[1641128099355,0.14033567,47347.0,47346.0,0.12000577]
[1641128099756,0.14033567,47347.0,47346.0,0.31200577]
[1641128099957,0.98029995,47347.0,47346.0,0.31200577]
[1641128100858,0.74029284,47347.0,47346.0,0.31200577]
[1641128101057,0.74029284,47347.0,47346.0,0.12000577]
[1641128101466,0.14033567,47347.0,47346.0,0.12000577]
[1641128101664,0.14033567,47347.0,47346.0,0.199]
[1641128101966,0.14033567,47347.0,47346.0,0.31900577]
[1641128102463,0.14033567,47347.0,47346.0,0.3310056]
[1641128103266,0.14033567,47347.0,47346.0,0.1320056]
[1641128103665,0.14033567,47347.0,47346.0,0.3290056]
[1641128104965,0.14033567,47347.0,47346.0,0.1320056]
[1641128105768,0.14033567,47347.0,47346.0,0.3310056]
[1641128107068,0.14033567,47347.0,47346.0,0.1320056]
[1641128107870,0.14033567,47347.0,47346.0,0.3280056]
[1641128109070,0.14033567,47347.0,47346.0,0.1320056]
[1641128109669,0.14033567,47347.0,47346.0,0.5080056]
[1641128110270,0.14033567,47347.0,47346.0,0.3280056]
[1641128111072,0.14033567,47347.0,47346.0,0.1320056]
[1641128111472,0.14033567,47347.0,47346.0,0.12000577]
[1641128111876,0.14033567,47347.0,47346.0,0.31400577]
[1641128112074,0.14033567,47347.0,47346.0,0.194]
[1641128112274,0.14033567,47347.0,47346.0,0.31400577]
[1641128112674,0.14033567,47347.0,47346.0,0.194]
[1641128112974,0.14033567,47347.0,47345.0,0.83635412]
[1641128113176,0.98029995,47347.0,47346.0,0.35827649]
[1641128113876,1.15429995,47347.0,47346.0,0.53827649]
[1641128115174,0.31433567,47347.0,47346.0,0.53827649]
[1641128115574,0.40436461,47347.0,47346.0,0.18]
[1641128115774,0.58636461,47347.0,47346.0,0.322]
[1641128115975,0.58736461,47347.0,47346.0,0.322]
[1641128116174,0.58636461,47347.0,47346.0,0.322]
[1641128117077,0.58736461,47347.0,47346.0,0.322]
[1641128117275,0.23136461,47347.0,47345.0,0.35827649]
[1641128117480,0.001,47346.0,47345.0,0.35827649]
[1641128117777,0.001,47346.0,47345.0,0.46527649]
[1641128118378,0.09102894,47346.0,47345.0,0.46527649]
[1641128119080,0.09102894,47346.0,47344.0,0.59712748]
[1641128119279,0.001,47345.0,47344.0,0.59712748]
[1641128119583,0.09002894,47346.0,47344.0,0.71714361]
[1641128119781,0.37912562,47345.0,47343.0,0.83635412]
[1641128119981,0.42246459,47342.0,47326.0,1.4990174]
[1641128120181,0.18,47334.0,47333.0,1.84759334]
[1641128120382,0.27299,47334.0,47333.0,1.84759334]
[1641128120680,0.2951204,47334.0,47326.0,1.4990174]
[1641128120880,0.18,47327.0,47325.0,0.77272565]
[1641128121087,0.001,47326.0,47315.0,1.9284]
[1641128121283,0.20213545,47324.0,47320.0,1.47844819]
[1641128121485,0.20113896,47321.0,47318.0,0.59007387]
[1641128121683,1.25133567,47319.0,47309.0,1.55329878]
[1641128121883,0.18,47310.0,47309.0,1.55329878]
[1641128122088,0.27265,47310.0,47309.0,1.55329878]
[1641128122284,0.27165,47310.0,47309.0,1.55329878]
[1641128122583,0.27165,47310.0,47309.0,0.01200874]
[1641128122784,0.36329296,47310.0,47298.0,1.80466487]
[1641128122983,0.18,47306.0,47298.0,1.80466487]
[1641128123184,0.18329296,47310.0,47298.0,1.80466487]
[1641128123185,0.18,47301.0,47298.0,1.80466487]
[1641128123384,0.18,47301.0,47299.0,0.01200985]
[1641128123584,0.02114505,47300.0,47299.0,0.01200985]
[1641128123786,0.10476505,47300.0,47299.0,0.01200985]
[1641128124189,0.08362,47300.0,47297.0,0.01200985]
[1641128124390,0.08362,47300.0,47299.0,0.01200985]
[1641128124594,0.08362,47300.0,47298.0,0.01200985]
[1641128124988,0.08362,47300.0,47299.0,0.01200985]
[1641128125490,0.08362,47300.0,47297.0,0.01200985]
[1641128125690,0.10476476,47300.0,47297.0,0.01200985]
[1641128125892,0.46976476,47300.0,47297.0,0.01200985]
[1641128126092,0.28976476,47300.0,47299.0,0.01200985]
[1641128126293,0.28976476,47300.0,47298.0,0.01200985]
[1641128126893,0.28976476,47300.0,47297.0,0.01200985]
[1641128127094,0.10476476,47300.0,47299.0,0.01200985]
[1641128127295,0.10476476,47300.0,47298.0,0.01200985]
[1641128127694,0.10476476,47300.0,47299.0,0.01200985]
[1641128127895,0.28876476,47300.0,47299.0,0.01200985]
[1641128128095,0.28876476,47300.0,47297.0,0.01200985]
[1641128128294,0.28876476,47300.0,47299.0,0.01200985]
[1641128128693,0.28876476,47300.0,47296.0,0.14033567]
[1641128128694,0.28876476,47300.0,47297.0,0.01200985]
[1641128128993,0.28876476,47300.0,47299.0,0.01200985]
[1641128129195,0.28876476,47300.0,47298.0,0.01200985]
[1641128129196,0.46876476,47300.0,47298.0,0.01200985]
[1641128129392,0.28876476,47300.0,47299.0,0.01200985]
[1641128129994,0.28876476,47300.0,47297.0,0.01200985]
[1641128130194,0.28876476,47300.0,47296.0,0.14033567]
[1641128130195,0.28876476,47300.0,47299.0,0.01200985]
[1641128130498,0.28876476,47300.0,47298.0,0.01200985]
[1641128130696,0.28876476,47300.0,47296.0,0.14033567]
[1641128130697,0.28876476,47300.0,47299.0,0.01200985]
[1641128131096,0.40087733,47299.0,47297.0,0.01200985]
[1641128131299,0.40087733,47299.0,47296.0,0.14033567]
[1641128131696,0.40087733,47299.0,47287.0,0.14033567]
[1641128131896,0.58487733,47299.0,47287.0,0.14033567]
[1641128132097,0.58487733,47299.0,47288.0,0.10832623]
[1641128133095,0.40087733,47299.0,47288.0,0.10832623]
[1641128133697,0.18,47297.0,47288.0,0.10832623]
[1641128134702,0.58487733,47299.0,47288.0,0.10832623]
[1641128134911,0.58487733,47299.0,47289.0,0.18]
[1641128135701,0.58487733,47299.0,47290.0,0.10832623]
[1641128135901,0.76787733,47299.0,47290.0,0.10832623]
[1641128136102,0.76787733,47299.0,47287.0,0.15012967]
[1641128136302,0.82484733,47299.0,47287.0,0.14033567]
[1641128136502,0.18,47296.0,47287.0,0.14033567]
[1641128137002,0.18,47296.0,47290.0,1.4406604]
[1641128137402,0.63784733,47299.0,47290.0,1.4406604]
[1641128137602,0.45784733,47299.0,47290.0,1.4406604]
[1641128137803,0.185,47296.0,47290.0,1.4406604]
[1641128138002,0.185,47296.0,47289.0,1.4406604]
[1641128139003,0.185,47296.0,47289.0,1.6206604]
[1641128139205,0.75959212,47299.0,47289.0,1.6206604]
[1641128139804,0.94259212,47299.0,47289.0,1.6206604]
[1641128140002,0.54171479,47299.0,47293.0,0.18]
[1641128140202,0.183,47299.0,47293.0,0.18]
[1641128141207,0.35871479,47301.0,47293.0,0.18]
[1641128141804,0.54271479,47301.0,47293.0,0.18]
[1641128142205,0.184,47301.0,47293.0,0.18]
[1641128142808,0.184,47301.0,47288.0,0.009794]
[1641128143005,0.02114685,47296.0,47287.0,0.14033567]
[1641128143806,0.20414685,47296.0,47287.0,0.14033567]
[1641128145205,0.02114685,47296.0,47287.0,0.14033567]
[1641128145906,0.20614685,47296.0,47287.0,0.14033567]
[1641128146408,0.20614685,47296.0,47288.0,0.0120116]
[1641128147008,0.20614685,47296.0,47287.0,0.14033567]
[1641128147208,0.02114685,47296.0,47287.0,0.14033567]
[1641128147408,0.02114685,47296.0,47288.0,0.01201149]
[1641128147909,0.20514685,47296.0,47288.0,0.01201149]
[1641128148709,0.184,47296.0,47288.0,0.01201149]
[1641128149311,0.42284634,47299.0,47288.0,0.01201149]
[1641128149611,0.14033567,47302.0,47290.0,0.18]
[1641128149811,0.188,47299.0,47290.0,0.18]
[1641128150725,0.188,47299.0,47291.0,0.01201101]
[1641128151325,0.42283199,47301.0,47291.0,0.01201101]
[1641128151526,0.02114664,47296.0,47291.0,0.01201101]
[1641128151726,0.02114544,47299.0,47287.0,0.14033567]
[1641128151926,0.42285174,47298.0,47287.0,0.14033567]
[1641128152225,0.42285174,47298.0,47288.0,0.01201146]
[1641128152929,0.02115001,47289.0,47282.0,0.14033567]
[1641128153124,0.11515001,47289.0,47282.0,0.14033567]
[1641128153524,0.11515001,47289.0,47274.0,0.18]
[1641128153525,0.42297766,47284.0,47274.0,0.18]
[1641128153725,0.11515001,47289.0,47274.0,0.18]
[1641128153926,0.14033567,47281.0,47274.0,0.18]
[1641128154125,0.14033567,47281.0,47278.0,0.01201352]
[1641128154325,0.14033567,47281.0,47275.0,0.01201352]
[1641128154526,0.14033567,47281.0,47279.0,0.01201352]
[1641128154825,0.14033567,47281.0,47276.0,0.01201352]
[1641128155025,0.14033567,47281.0,47273.0,0.2]
[1641128155226,0.14033567,47281.0,47277.0,0.01201368]
[1641128155627,0.14033567,47281.0,47274.0,0.01201368]
[1641128155825,0.33033567,47281.0,47278.0,0.01201368]
[1641128156227,0.33033567,47281.0,47275.0,0.01201368]
[1641128156428,0.33033567,47281.0,47273.0,0.02]
[1641128156626,0.33033567,47281.0,47276.0,0.01201436]
[1641128156825,0.33033567,47281.0,47274.0,0.01201436]
[1641128157226,0.14033567,47281.0,47274.0,0.01201436]
[1641128157831,0.32733567,47281.0,47273.0,0.02]
[1641128158234,0.32733567,47281.0,47274.0,0.01201476]
[1641128159332,0.14033567,47281.0,47274.0,0.01201476]
[1641128159732,0.14033567,47281.0,47273.0,0.02]
[1641128159933,0.32733567,47281.0,47273.0,0.02]
[1641128160135,0.32733567,47281.0,47274.0,0.19201449]
[1641128160334,0.32733567,47281.0,47279.0,0.18]
[1641128160536,0.14033567,47286.0,47280.0,0.02114572]
[1641128160736,0.14033567,47286.0,47285.0,0.18]
[1641128160934,0.14033567,47286.0,47279.0,0.08861]
[1641128161435,0.14033567,47286.0,47276.0,0.02114745]
[1641128161835,0.45567134,47286.0,47279.0,0.176]
[1641128162236,0.45567134,47286.0,47279.0,0.44954]
[1641128162435,0.45567134,47286.0,47279.0,0.26954]
[1641128162835,0.45567134,47286.0,47280.0,0.18]
[1641128163035,0.45567134,47286.0,47285.0,0.18]
[1641128163237,0.28067134,47286.0,47285.0,0.18]
[1641128163639,0.14033567,47291.0,47285.0,0.18]
[1641128163937,0.14033567,47291.0,47290.0,0.18]
[1641128164137,0.14033567,47291.0,47290.0,0.27105]
[1641128164946,0.14033567,47291.0,47290.0,0.09105]
[1641128165746,0.14033567,47291.0,47290.0,0.27105]
[1641128165947,0.14033567,47291.0,47290.0,0.46105]
[1641128166347,0.14033567,47291.0,47290.0,1.30117254]
[1641128167148,0.14033567,47291.0,47290.0,0.46105]
[1641128167349,0.14033567,47291.0,47290.0,0.27105]
[1641128167952,0.14033567,47291.0,47290.0,0.46105]
[1641128169152,0.14033567,47291.0,47290.0,1.11120545]
[1641128169351,0.14033567,47291.0,47290.0,1.12321695]
[1641128169752,0.14033567,47291.0,47290.0,0.1030615]
[1641128169953,0.14033567,47291.0,47290.0,0.2010115]
[1641128170153,0.14033567,47291.0,47290.0,0.189]
[1641128170956,0.14033567,47291.0,47290.0,0.369]
[1641128171153,0.14033567,47291.0,47290.0,0.18]
[1641128171356,0.14033567,47291.0,47287.0,0.02114269]
[1641128171357,0.14033567,47291.0,47289.0,1.0201663]
[1641128171756,0.14033567,47291.0,47290.0,0.0120117]
[1641128171954,0.35484476,47296.0,47290.0,0.0120117]
[1641128172154,0.9462527,47297.0,47292.0,0.18]
[1641128172355,0.35484476,47297.0,47292.0,0.18]
[1641128172754,0.35484476,47297.0,47289.0,0.26184]
[1641128173155,0.35484476,47297.0,47291.0,0.84011631]
[1641128173556,0.35484476,47297.0,47291.0,1.02011631]
[1641128174057,0.35484476,47296.0,47291.0,0.367]
[1641128175055,0.35484476,47296.0,47295.0,0.18]
[1641128175755,0.9462527,47297.0,47295.0,0.18]
[1641128175955,0.35484476,47297.0,47295.0,0.186]
[1641128176157,0.35484476,47297.0,47295.0,0.366]
[1641128176757,0.49518043,47298.0,47295.0,0.366]
[1641128177356,0.49518043,47298.0,47295.0,0.18]
[1641128177557,0.35484476,47297.0,47292.0,0.84011631]
[1641128177958,0.35484476,47297.0,47295.0,0.183]
[1641128178458,0.31533567,47298.0,47296.0,0.01201183]
[1641128178659,0.31533567,47298.0,47295.0,1.02311631]
[1641128178858,0.31533567,47298.0,47297.0,0.01201184]
[1641128179066,0.13397409,47297.0,47295.0,0.84011631]
[1641128179261,0.13397409,47297.0,47295.0,0.75592815]
[1641128179859,0.31997409,47297.0,47295.0,0.75592815]
[1641128180360,0.11087545,47296.0,47279.0,1.4406604]
[1641128180558,0.1166881,47296.0,47285.0,0.0211436]
[1641128180758,0.00581265,47295.0,47285.0,0.0211436]
[1641128180958,0.00581265,47295.0,47286.0,0.18]
[1641128181260,0.00581265,47295.0,47286.0,0.19201276]
[1641128181460,0.186,47297.0,47292.0,0.18]
[1641128181660,0.35240999,47296.0,47293.0,0.18]
[1641128181861,0.35240999,47296.0,47293.0,0.19201276]
[1641128182260,0.192,47297.0,47294.0,1.13280676]
[1641128182460,0.192,47297.0,47296.0,1.291]
[1641128182659,0.192,47297.0,47296.0,1.292]
[1641128182864,0.1846,47297.0,47296.0,0.19301276]
[1641128183260,0.35240999,47300.0,47296.0,0.19301276]
[1641128183460,0.35240999,47300.0,47299.0,0.18]
[1641128183661,0.14033567,47303.0,47299.0,0.18]
[1641128183862,0.14033567,47303.0,47299.0,0.01201276]
[1641128184060,0.178,47300.0,47299.0,0.18501276]
[1641128184260,0.178,47300.0,47299.0,0.173]
[1641128185261,0.14033567,47303.0,47298.0,0.18]
[1641128185466,0.49274566,47303.0,47298.0,0.18]
[1641128185861,0.49274566,47303.0,47296.0,0.14033567]
[1641128186060,0.68274566,47303.0,47296.0,0.14033567]
[1641128186261,0.35240999,47300.0,47298.0,0.18]
[1641128186861,0.35240999,47300.0,47296.0,0.14033567]
[1641128187061,0.00550984,47299.0,47296.0,0.14033567]
[1641128187663,0.00550984,47299.0,47298.0,0.18]
[1641128188066,0.54491983,47299.0,47296.0,0.25733567]
[1641128188464,0.00550984,47298.0,47296.0,0.25733567]
[1641128188665,0.00550984,47298.0,47297.0,0.001]
[1641128189666,0.00550984,47299.0,47297.0,0.001]
[1641128189867,0.35240999,47300.0,47296.0,0.14033567]
[1641128190065,0.172,47298.0,47297.0,0.169]
[1641128190567,0.172,47298.0,47297.0,0.349]
[1641128190769,0.172,47298.0,47297.0,0.169]
[1641128190970,0.172,47298.0,47297.0,0.35]
[1641128192069,0.18,47298.0,47297.0,0.355]
[1641128193274,0.35240999,47300.0,47297.0,0.181]
[1641128193472,0.35240999,47300.0,47299.0,0.001]
[1641128194090,0.52940999,47300.0,47299.0,0.172]
[1641128194275,0.177,47300.0,47299.0,0.172]
[1641128194473,0.177,47300.0,47299.0,0.352]
[1641128195375,0.35240999,47301.0,47299.0,0.181]